Cogmind - Beta 11 @@@ ROGUE MODE // 2022.04.16 @ 20:16:30 Player: pappous Result: Destroyed by X-57 Shotgunner with Shotgun Performance ------------- Evolutions (2) 1000 Regions Visited (3) 600 Robots Destroyed (68) 340 Value Destroyed (1961) 1961 Prototype IDs (4) 80 Alien Tech Used (0) 0 Bonus (0) 0 TOTAL SCORE: 3981 Bonus ------- None Cogmind --------- Core Integrity 0/550 Matter 300/300 Energy 100/100 System Corruption 3% Temperature Cool (0) Movement Core (1400) Ox27 Location -8/Materials Parts ------- > --- POWER (1) -------- (None) > --- PROPULSION (3) --- (None) > --- UTILITY (5) ------ Huge Storage Unit Advanced Visual Processing Unit Targeting Computer > --- WEAPON (2) ------- Beam Rifle > --- INVENTORY (25) --- Improved Treads Armored Treads Armored Wheel Cargo Storage Unit Large Matter Pod (150) Trap Scanner Advanced Visual Processing Unit Signal Interpreter Advanced ECM Suite Heavy Armor Plating Heavy Armor Plating Heavy Laser Heavy Particle Cannon Heavy Particle Cannon Minigun High-powered Shotgun Flak Gun Flak Gun Rocket Launcher Improved Datajack Great Maul Peak State ------------ > --- POWER ------------ Light Nuclear Core > --- PROPULSION ------- Light Treads Light Treads Armored Wheel > --- UTILITY ---------- Advanced Heat Sink Huge Storage Unit Advanced Visual Processing Unit Targeting Computer Light Armor Plating > --- WEAPON ----------- Beam Rifle Flak Gun > --- INVENTORY -------- Ion Engine Improved Treads Armored Treads Armored Wheel Cargo Storage Unit Large Matter Pod Trap Scanner Advanced Visual Processing Unit Signal Interpreter Advanced ECM Suite Heavy Armor Plating Heavy Armor Plating Heavy Laser Heavy Particle Cannon Heavy Particle Cannon Minigun High-powered Shotgun Flak Gun Flak Gun Rocket Launcher Improved Datajack Great Maul [Rating: 30] Favorites ----------- Power Ion Engine Engine Ion Engine Power Core Light Nuclear Core Propulsion Light Treads Treads Light Treads Wheel Wheel Utility Huge Storage Unit Device Heat Sink Storage Huge Storage Unit Processor Targeting Computer Protection Light Armor Plating Weapon Small Laser Energy Gun Small Laser Energy Cannon Heavy Particle Cannon Ballistic Gun Heavy Assault Rifle Launcher Rocket Launcher Build | -11 -10 -9 -8 ------- Run | Scr Mat Mat Mat Slots Evolved 4 | . . 2 2 Power . | . . . . Propulsion 1 | . . . 1 Utility 3 | . . 2 1 Weapon . | . . . . Parts Attached 51 | 6 10 9 26 Power 7 | 1 1 1 4 Engine 4 | 1 1 1 1 Core 3 | . . . 3 Reactor . | . . . . Propulsion 14 | 1 3 2 8 Treads 10 | . 3 2 5 Leg . | . . . . Wheel 4 | 1 . . 3 Hover . | . . . . Flight . | . . . . Utility 13 | 1 3 2 7 Device 4 | . . 1 3 Storage 3 | 1 2 . . Processor 4 | . 1 . 3 Hackware . | . . . . Protection 2 | . . 1 1 Artifact . | . . . . Weapon 17 | 3 3 4 7 Energy Gun 8 | 3 3 . 2 Energy Cannon 2 | . . 1 1 Ballistic Gun 5 | . . 2 3 Ballistic Cannon . | . . . . Launcher 2 | . . 1 1 Special Weapon . | . . . . Impact Weapon . | . . . . Slashing Weapon . | . . . . Piercing Weapon . | . . . . Special Melee Weapon . | . . . . Unidentified Prototypes . | . . . . Parts Lost 23 | . 6 4 13 Power 4 | . 1 1 2 Propulsion 11 | . 2 2 7 Utility 3 | . . . 3 Weapon 5 | . 3 1 1 Highest Loss Streak 8 | . 4 1 8 To Critical Strikes . | . . . . Average Slot Usage (%) 83 | . 79 82 88 Engine 6 | . 9 6 1 Core 2 | . . . 7 Treads 22 | . 22 21 22 Wheel 3 | . 4 . 3 Device 5 | . . 8 10 Storage 11 | . 14 11 9 Processor 8 | . 3 11 12 Protection 3 | . . 8 3 Energy Gun 11 | . 23 3 1 Energy Cannon 3 | . . 5 6 Ballistic Gun 4 | . . 6 9 Naked Turns . | . . . . Heaviest Build 99 | 13 88 96 99 Greatest Support 60 | 10 46 46 60 Greatest Overweight (x) 29 | 4 1 4 29 Average Overweight (x) 1 | 1 . 1 3 Largest Inventory Capacity 25 | 8 25 25 25 Average Capacity 23 | 7 21 25 25 Most Carried 25 | 2 14 25 25 Average Carried 17 | 1 11 20 23 Final Capacity 25 | 8 25 25 25 Final Carried 24 | 2 14 22 24 Class Distribution -------------------- 62% | Mutant 37% | Scavenger-Mutant Dominant Class ---------------- Mutant | -10/Materials Mutant | -9/Materials Scavenger-Mutant | -8/Materials Resources | -11 -10 -9 -8 ----------- Run | Scr Mat Mat Mat Matter Collected 1291 | 213 319 171 588 Remotely . | . . . . Salvage Created 2219 | . 715 493 1011 Parts 135 | . 33 38 64 Haulers Intercepted 3 | . 1 . 2 Recyclers Shooed 1 | . . 1 . Parts Field Recycled . | . . . . Retrieved Matter . | . . . . Parts Self-Destructed . | . . . . Prevented . | . . . . Kills | -11 -10 -9 -8 ------- Run | Scr Mat Mat Mat Combat Hostiles Destroyed 58 | . 18 17 23 Guns 39 | . 17 10 12 Cannons 11 | . . 3 8 AOE 7 | . . 4 3 Classes Destroyed 12 | . 3 3 6 Worker 1 | . . . 1 Builder 2 | . . . 2 Hauler 3 | . 1 . 2 Recycler 1 | . . 1 . Operator 1 | . . . 1 Watcher 2 | . . 1 1 Swarmer 18 | . 3 11 4 Grunt 31 | . 15 2 14 Brawler 1 | . . . 1 Sentry 6 | . . 4 2 Specialist 1 | . . . 1 Hunter 1 | . . . 1 Best Kill Streak 10 | . 3 6 10 Combat Bots Only 6 | . 3 4 6 Max Kills in Single Turn 4 | . 1 4 3 Gunslinging . | . . . . Exploded 4 | . . 4 1 Melee . | . . . . Uniques/NPCs Destroyed . | . . . . Combat | -11 -10 -9 -8 -------- Run | Scr Mat Mat Mat Damage Taken 4047 | . 984 489 2574 Core 813 | . 235 20 558 Absorbed by Shields . | . . . . Core Remaining (%) 67 | 100 6 95 . Volleys Fired 172 | . 70 33 69 Largest 2 | . 2 2 2 Hottest 103 | . 90 98 103 Shots Fired 305 | . 107 62 136 Gun 250 | . 107 51 92 Cannon 48 | . . 10 38 Launcher 7 | . . 1 6 Special . | . . . . Kinetic 91 | . . 20 71 Thermal 193 | . 93 41 59 Explosive 7 | . . 1 6 Electromagnetic 14 | . 14 . . Robot Hit Streak 21 | . 9 17 21 Robot Miss Streak 6 | . 3 4 6 Penetration Max . | . . . . Secondary Targets 2 | . 1 . 1 Max Gunslinging Chain 1 | . 1 . 1 Shots Hit Robots 209 | . 74 43 92 Core Hits 148 | . 36 24 88 Critical Kills . | . . . . Critical Parts Destroyed . | . . . . Critical Strikes 6 | . 4 . 2 Burn 6 | . 4 . 2 Melee Attacks . | . . . . Impact . | . . . . Slashing . | . . . . Piercing . | . . . . Sneak Attacks . | . . . . Combat Hostiles . | . . . . Follow-up Attacks . | . . . . Damage Inflicted 4263 | . 951 934 2378 Guns 2667 | . 869 503 1295 Cannons 800 | . . 175 625 Explosions 782 | . 68 256 458 Melee . | . . . . Ramming 14 | . 14 . . Kinetic 1249 | . . 232 1017 Thermal 2144 | . 795 446 903 Explosive 714 | . . 256 458 Electromagnetic 142 | . 142 . . Impact . | . . . . Slashing . | . . . . Piercing . | . . . . Highest Corruption 6 | . 6 2 3 Average Corruption 4 | . 5 2 3 Corruption Purged . | . . . . Corruption Blocked . | . . . . Effects 24 | . 16 4 4 Message Errors 4 | . 3 . 1 Matter Fused 6 | . 6 . . Heat Flow Errors 4 | . 3 . 1 Energy Discharges 4 | . 2 1 1 Data Loss (minor) 3 | . 1 2 . Data Loss (major) 2 | . . 1 1 Alerts 1 | . 1 . . Overload Shots . | . . . . Overflow Damage 79 | . 47 11 21 Projectiles 12 | . . . 12 Explosions 67 | . 47 11 9 Melee . | . . . . Knockbacks . | . . . . Impact . | . . . . Kinetic . | . . . . Secondary . | . . . . Self-Inflicted Damage 76 | . 48 . 28 Shots 2 | . 1 . 1 Rammed 1 | . 1 . . Targets Rammed 1 | . 1 . . Kicked . | . . . . Crushed . | . . . . Highest Temperature 257 | . 257 186 154 Average Temperature 55 | . 59 62 42 Received Heat Transfer 1260 | . 468 90 702 Siege Activations . | . . . . Robots Corrupted . | . . . . Combat Hostiles . | . . . . Parts Fried . | . . . . Impact Corruptions . | . . . . Robots Melted 1 | . 1 . . Combat Hostiles 1 | . 1 . . Parts Melted 5 | . 1 1 3 Heat Transferred 4966 | . 2271 919 1776 Parts Sabotaged . | . . . . Parts Stolen . | . . . . Parts Stripped . | . . . . Power Chain Reactions 1 | . 1 . . Missiles Intercepted . | . . . . Alert | -11 -10 -9 -8 ------- Run | Scr Mat Mat Mat Peak Influence 389 | . 223 352 389 Initial 38 | . . 38 22 Average 128 | . 92 163 152 Maximum Alert Level 1 | . 1 1 1 Low Security (%) 82 | 100 92 82 66 Level 1 17 | . 7 17 33 Level 2 . | . . . . Level 3 . | . . . . Level 4 . | . . . . Level 5 . | . . . . High Security . | . . . . Max Security . | . . . . Squads Dispatched 12 | . 7 1 4 Investigation 4 | . 4 . . Extermination . | . . . . Reinforcement 8 | . 3 1 4 Assault . | . . . . Garrison . | . . . . Intercept . | . . . . Searches Triggered . | . . . . Construction Impeded 1 | . . . 1 Haulers Reinforced . | . . . . Active Scanning Responses . | . . . . Cargo Convoy Interrupts . | . . . . Stealth | -11 -10 -9 -8 --------- Run | Scr Mat Mat Mat Distress Signals 10 | . 4 2 4 Communications Jammed . | . . . . Distress Signals . | . . . . Times Spotted 115 | . 36 24 55 Peak Tracking Total 9 | . 4 7 9 Tactical Retreats 2 | . 1 . 1 Traps | -11 -10 -9 -8 ------- Run | Scr Mat Mat Mat Traps Triggered 8 | . 7 1 . Indirectly . | . . . . Trap Hack Attempts . | . . . . Triggered . | . . . . Disarmed . | . . . . Reprogrammed . | . . . . Reused . | . . . . Traps Extracted . | . . . . Installed . | . . . . Triggered . | . . . . Machines | -11 -10 -9 -8 ---------- Run | Scr Mat Mat Mat Machines Disabled 2 | . . . 2 Max in Single Turn 1 | . . . 1 Machines Sabotaged . | . . . . Garrisons Compromised . | . . . . Overloaded Fab Kills . | . . . . Hacking | -11 -10 -9 -8 --------- Run | Scr Mat Mat Mat Machines Accessed 4 | . 3 1 . Terminals 4 | . 3 1 . Fabricators . | . . . . Repair Stations . | . . . . Recycling Units . | . . . . Scanalyzers . | . . . . Garrison Access . | . . . . Total Hacks 6 | . 4 2 . Successful 5 | . 3 2 . Failed 1 | . 1 . . Catastrophic . | . . . . Database Lockouts . | . . . . Manual . | . . . . Terminals 6 | . 4 2 . Fabricators . | . . . . Repair Stations . | . . . . Recycling Units . | . . . . Scanalyzers . | . . . . Garrison Access . | . . . . Terminal Hacks 5 | . 3 2 . Record 1 | . 1 . . Prototype ID Bank 2 | . 1 1 . Level Access Points 1 | . 1 . . Alert Level 1 | . . 1 . Fabricator Hacks . | . . . . Repair Station Hacks . | . . . . Recycling Unit Hacks . | . . . . Scanalyzer . | . . . . Garrison Access Hacks . | . . . . Unauthorized Hacks . | . . . . Terminals . | . . . . Fabricators . | . . . . Repair Stations . | . . . . Recycling Units . | . . . . Scanalyzers . | . . . . Garrison Access . | . . . . Data Cores Recovered . | . . . . Used . | . . . . Hacking Detections 1 | . 1 . . Full Trace Events . | . . . . Feedback Events . | . . . . Feedback Blocked . | . . . . Robot Schematics Acquired . | . . . . Robots Built . | . . . . Authchips . | . . . . Time . | . . . . Total Robot Build Rating . | . . . . Part Schematics Acquired . | . . . . Parts Built . | . . . . Authchips . | . . . . Time . | . . . . Total Part Build Rating . | . . . . Parts Repaired . | . . . . Time . | . . . . Parts Recycled . | . . . . Recycled Matter . | . . . . Retrieved Matter . | . . . . Retrieved Components . | . . . . Parts Scanalyzed . | . . . . Part Schematics Acquired . | . . . . Parts Damaged . | . . . . Bothacking | -11 -10 -9 -8 ------------ Run | Scr Mat Mat Mat Used RIF Installer . | . . . . Robots Hacked . | . . . . Non-combat . | . . . . Combat . | . . . . Robot Hacks Applied . | . . . . Relay Couplers Released . | . . . . Fabnet Peak Effective % . | . . . . Robots Rewired . | . . . . Allies Hacked . | . . . . Hacks Repelled . | . . . . Allies | -11 -10 -9 -8 -------- Run | Scr Mat Mat Mat Total Allies . | . . . . Largest Group . | . . . . Highest-Rated Group . | . . . . Highest-Rated Ally . | . . . . Total Orders . | . . . . Ally Attacks . | . . . . Total Damage . | . . . . Kills . | . . . . Allies Corrupted . | . . . . Allies Melted . | . . . . Intel | -11 -10 -9 -8 ------- Run | Scr Mat Mat Mat Robot Analysis Total . | . . . . Derelict Logs Recovered . | . . . . Drone Launches . | . . . . Drone Recoveries . | . . . . Exploration | -11 -10 -9 -8 ------------- Run | Scr Mat Mat Mat Turns Passed 4862 | 54 2077 1276 1455 Spaces Moved 1736 | 37 791 395 513 Core 18 | 17 . . 1 Treads 1424 | . 747 395 282 Legs . | . . . . Wheels 294 | 20 44 . 230 Hover . | . . . . Flight . | . . . . Fastest Speed 50 | 50 95 240 175 Average Speed 237 | 120 229 282 224 Slowest Speed 1500 | 250 240 480 1500 Overloaded Moves . | . . . . Propulsion Burnouts . | . . . . Robots Hopped . | . . . . Cave-ins Triggered . | . . . . Exploration Rate (%) 45 | 3 95 44 41 Regions Visited 3 Branch Regions . Pre-discovered Areas . | . . . . Known Exits Taken 1 | . 1 . . Unknown Exits Taken 2 | 1 . 1 . Scrap Searched . | . . . . Spaces Dug 2 | . . . 2 Terrain Destroyed 85 | . 4 11 70 Melee . | . . . . Projectile 15 | . . 3 12 AOE 70 | . 4 8 58 Terrain Rammed . | . . . . Walls Destroyed . | . . . . Machines Disabled . | . . . . Actions | -11 -10 -9 -8 --------- Run | Scr Mat Mat Mat Total 2172 | 43 947 498 684 Wait 141 | . 54 42 45 Move 1733 | 36 790 394 513 Hop . | . . . . Pick Up 49 | 1 19 15 14 Fast Attach 17 | 5 3 1 8 Attach 21 | . 7 7 7 Detach 1 | . . 1 . Swap 13 | 1 . 1 11 Drop 24 | . 3 4 17 Fire 172 | . 70 33 69 Melee . | . . . . Ram . | . . . . Kick . | . . . . Crush 1 | . 1 . . Escape Stasis . | . . . . Rewire . | . . . . Trap . | . . . . Miscellaneous . | . . . . Route ------- -11/Scrapyard -10/Materials (discovered 4 exits: *Mat x3 / [*Min]) -9/Materials (discovered 2 exits: *Mat x2) -8/Materials (discovered 2 exits: [*Fac x2]) History --------- Turn | Location | Event 21 | -11/Scrapyard | Discovered new exit (range 15) 55 | -11/Scrapyard | Entered Materials 234 | -10/Materials | Discovered new exit (range 13) 317 | -10/Materials | Build established: Mutant 785 | -10/Materials | Core integrity fell below 50% 816 | -10/Materials | Lost 4 parts (1n3w) 1208 | -10/Materials | Discovered new exit (range 11) 1362 | -10/Materials | Identified exit to Materials 1511 | -10/Materials | Core integrity fell below 20% 2132 | -10/Materials | Entered another Materials area 2132 | -9/Materials | Evolved 2 slots: Utility x2 2559 | -9/Materials | Discovered new exit (range 5) 3292 | -9/Materials | Discovered new exit (range 16) 3330 | -9/Materials | Build established: Scavenger-Mutant 3408 | -9/Materials | Entered another Materials area 3408 | -8/Materials | Evolved 2 slots: Propulsion x1, Utility x1 3792 | -8/Materials | Discovered new exit (range 10) 4478 | -8/Materials | Lost 3 parts (3n) 4791 | -8/Materials | Core integrity fell below 50% 4796 | -8/Materials | Discovered new exit (range 13) 4828 | -8/Materials | Core integrity fell below 20% 4863 | -8/Materials | Destroyed by X-57 Shotgunner with Shotgun Last Messages --------------- 04801_ U-05 Engineer builds a Wall. 04808_ R-06 Scavenger collects Wheel. 04809_ Material Compactor disabled. 04812_ U-05 Engineer builds a Wall. 04812_ R-06 Scavenger collects Lgt. Ion Engine. 04821_ R-06 Scavenger collects Wheel. 04827_ Lgt. Treads destroyed. 04827_ X-57 Shotgunner destroyed. 04828_ Acquired 20 matter. 04834_ Flak Gun destroyed. 04836_ U-05 Engineer builds a Wall. 04840_ K-01 Serf collects debris. 04849_ Arm. Wheel destroyed. 04850_ K-01 Serf collects debris. 04851_ Ion Engine destroyed. 04851_ K-01 Serf destroyed. 04851_ Lgt. Treads destroyed. 04851_ K-01 Serf collects debris. 04855_ Adv. Heat Sink destroyed. 04857_ K-01 Serf collects debris. Map ----- +----------------------------------------------------+ | #????????????????##^^^# #????????????? | | #####??????????######## # #????????????? | | ???????????????# """ % # #????????????? | | ???????????????# "T" + #????????????? | | ????????######## " " # #????????????? | | ????????# = + # #????????????? | | ????????#""" # # #????????????? | | ????????#""" # a ###########????????????? | | ????????#""" ?# ##?????????????????????? | | ????????# ?# #??????????????????????? | | ????????# "T??# #??????????????????????? | | ????????#####??# """ #??????????????????????? | | ???????????????# """"" #??????????????????????? | | ???????????????# """"" #??????????????????????? | | ??????????????## """""o #??????????????????????? | | ??????########## """ #??????????????????????? | | ??????# # #??????????????????????? | | ?????## """ [ #*!= u #??????????????????????? | | ?????# """ =!#!*k "" #??????????????????????? | | ?????## """ %%+%[ ""x #??????????????????????? | | ??????# = *=#[=""""" #??????????????????????? | | ??????# = #=[""""" #??????????????????????? | | ??????# = ! # "" = #??????????????????????? | | ??????# # H *%| #??????????????????????? | | ??????# ! ! # !*#??????????????????????? | | ??????########## u%%@#??????????????????????? | | ???????????????######## %=#??????????????????????? | | ??????????????????????# % ;??????????????????????? | | ???????????????######## % #??????????????????????? | | ?????????+ ^ ##?????????????????????? | | ??????????# ????????????????????? | | ??????????# ###### ??????????????????? | | ??????????# ???????# ????????????????? | | ??????????# ??????????####+### ??????????????? | | ?????????????????????????????? ????????????? | | ???????????????????????????????< ??????????? | | ???????????????????????????????? #######?????????? | | ?????????????????????????????????#???????????????? | | ?????????????????????????????????????????????????? | | ?????????????????????????????????????????????????? | | ?????????????????????????????????????????????????? | | ?????????????????????????????????????????????????? | | ?????????????????????????????????????????????????? | | ?????????????????????????????????????????????????? | | ?????????????????????????????????????????????????? | | ?????????????????????????????????????????????????? | | ?????????????????????????????????????????????????? | | | | | | | +----------------------------------------------------+ Best States ------------- Heat Dissipation 55 Energy Generation 14 Energy Capacity 250 Matter Stores 300 Matter Capacity 300 Sight Range 20 Terrain Scan Density 10 Armor Coverage 150 Evasion (%) 41 Targeting Accuracy 5 Recoil Reduction 3 Item Schematics ----------------- None Robot Schematics ------------------ None Fabricated ------------ Nothing Alien Tech Used ----------------- None Achievements -------------- None Challenges ------------ None Game ------ Seed StormLongswordNanoactuators Manual? 0 Play Time 00:38:52 Cumulative 73.5 hours Start 2022.04.16 @ 18:28:08 End 2022.04.16 @ 20:16:30 Sessions 1 Manual Loads 0 Difficulty Rogue Special Mode None Game No. 98 Rogue 98 Adventurer 0 Explorer 0 Win Type - Total 1 Types 1/0/0/0/0/0/0/0/0 Lore% 50 Gallery% 50 Achievement% 42 Wizard Run 0 Options --------- ASCII 0 Keyboard 0 Movement Mouse Keybinds 0 Fullscreen 1 Font 14/SmallcapsLarge Map View 72x54 Tactical HUD 1 Map Filters NONE Filters NONE Steam 1 RUN: 5bd244e1-9b10-49aa-b29a-e40bf633eef2